[Event "Late-Titled-Tuesday-Blitz-February-27-2024"]
[Site "Chess.com"]
[Date "2024.02.27"]
[Round "8"]
[White "Statham_01"]
[Black "Nemsko"]
[Result "0-1"]
[WhiteElo "2535"]
[BlackElo "2411"]
[TimeControl "180+1"]
[EndTime "15:28:12 PST"]
[Termination "Nemsko won by checkmate"]

1. e4 {[%clk 0:02:48.9]} 1... e5 {[%clk 0:02:59.7]} 2. Nf3 {[%clk 0:02:48.6]}
2... Nc6 {[%clk 0:03:00]} 3. c3 {[%clk 0:02:49.1]} 3... Nf6 {[%clk 0:03:00]} 4.
d4 {[%clk 0:02:48.9]} 4... d5 {[%clk 0:02:50.7]} 5. Bb5 {[%clk 0:02:46.9]} 5...
dxe4 {[%clk 0:02:44.6]} 6. Nxe5 {[%clk 0:02:46.7]} 6... Bd7 {[%clk 0:02:43]} 7.
Bxc6 {[%clk 0:02:47.1]} 7... Bxc6 {[%clk 0:02:40.4]} 8. Nxc6 {[%clk 0:02:46.5]}
8... bxc6 {[%clk 0:02:41.3]} 9. O-O {[%clk 0:02:46.4]} 9... Bd6 {[%clk
0:02:38.7]} 10. Bg5 {[%clk 0:02:46.6]} 10... O-O {[%clk 0:02:38.5]} 11. Nd2
{[%clk 0:02:47.3]} 11... Re8 {[%clk 0:02:31.8]} 12. Re1 {[%clk 0:02:47.8]} 12...
h6 {[%clk 0:02:22.7]} 13. Bxf6 {[%clk 0:02:23.2]} 13... Qxf6 {[%clk 0:02:23.6]}
14. Qg4 {[%clk 0:02:23.6]} 14... h5 {[%clk 0:01:59]} 15. Qxh5 {[%clk 0:02:04.9]}
15... Qf4 {[%clk 0:01:58]} 16. g3 {[%clk 0:01:38.8]} 16... Qxd2 {[%clk
0:01:53.5]} 17. Re2 {[%clk 0:01:32.6]} 17... Qd3 {[%clk 0:01:47.4]} 18. Rae1
{[%clk 0:01:32]} 18... Rab8 {[%clk 0:01:35.2]} 19. Qf5 {[%clk 0:01:26.9]} 19...
g6 {[%clk 0:01:28.5]} 20. Qd7 {[%clk 0:01:22.4]} 20... Qc4 {[%clk 0:01:16.2]}
21. h4 {[%clk 0:01:14.7]} 21... Rbd8 {[%clk 0:01:07.6]} 22. Qg4 {[%clk 0:01:14]}
22... Qe6 {[%clk 0:01:07.8]} 23. Qg5 {[%clk 0:00:47.5]} 23... Qf5 {[%clk
0:01:06]} 24. Qh6 {[%clk 0:00:42.2]} 24... Qh5 {[%clk 0:01:02.7]} 25. Qxh5
{[%clk 0:00:37]} 25... gxh5 {[%clk 0:01:02.3]} 26. Rxe4 {[%clk 0:00:37.9]} 26...
Rxe4 {[%clk 0:01:02]} 27. Rxe4 {[%clk 0:00:38.8]} 27... Kf8 {[%clk 0:00:57.9]}
28. Re2 {[%clk 0:00:19.9]} 28... Re8 {[%clk 0:00:50.8]} 29. Rd2 {[%clk
0:00:19.4]} 29... Re1+ {[%clk 0:00:49.8]} 30. Kg2 {[%clk 0:00:19.7]} 30... Kg7
{[%clk 0:00:46.7]} 31. Kf3 {[%clk 0:00:16.5]} 31... Kf6 {[%clk 0:00:44.5]} 32.
a3 {[%clk 0:00:16.5]} 32... Kf5 {[%clk 0:00:43.3]} 33. Rd3 {[%clk 0:00:11.2]}
33... f6 {[%clk 0:00:31.4]} 34. b4 {[%clk 0:00:11.4]} 34... Re4 {[%clk
0:00:21.6]} 35. c4 {[%clk 0:00:10.8]} 35... Bf8 {[%clk 0:00:19.7]} 36. Kg2
{[%clk 0:00:05.2]} 36... Bh6 {[%clk 0:00:19.4]} 37. f4 {[%clk 0:00:03.4]} 37...
Re2+ {[%clk 0:00:16.2]} 38. Kf3 {[%clk 0:00:03.6]} 38... Re8 {[%clk 0:00:15.9]}
39. d5 {[%clk 0:00:04.1]} 39... Rd8 {[%clk 0:00:13.1]} 40. a4 {[%clk 0:00:02.7]}
40... Bf8 {[%clk 0:00:11.1]} 41. b5 {[%clk 0:00:01.9]} 41... cxd5 {[%clk
0:00:09.2]} 42. cxd5 {[%clk 0:00:02.4]} 42... Bc5 {[%clk 0:00:08.4]} 43. Rd1
{[%clk 0:00:03]} 43... Bb6 {[%clk 0:00:07.4]} 44. Rd3 {[%clk 0:00:03.3]} 44...
Re8 {[%clk 0:00:07.8]} 45. Ra3 {[%clk 0:00:02.7]} 45... Rd8 {[%clk 0:00:07.7]}
46. a5 {[%clk 0:00:02.9]} 46... Bc5 {[%clk 0:00:07.6]} 47. Rd3 {[%clk
0:00:03.5]} 47... Rd6 {[%clk 0:00:07.6]} 48. Rd1 {[%clk 0:00:02.9]} 48... Bb4
{[%clk 0:00:07.8]} 49. a6 {[%clk 0:00:03]} 49... Bc5 {[%clk 0:00:07.5]} 50. Rd3
{[%clk 0:00:02.9]} 50... Bb6 {[%clk 0:00:07]} 51. Rd1 {[%clk 0:00:03]} 51... Kg6
{[%clk 0:00:07.1]} 52. Ke4 {[%clk 0:00:02.9]} 52... f5+ {[%clk 0:00:07.2]} 53.
Ke5 {[%clk 0:00:03.2]} 53... Rd8 {[%clk 0:00:05.2]} 54. Ke6 {[%clk 0:00:01.6]}
54... Bc5 {[%clk 0:00:04.9]} 55. Ke5 {[%clk 0:00:01.6]} 55... Re8# {[%clk
0:00:04.5]} 0-1

[Event "Late-Titled-Tuesday-Blitz-February-27-2024"]
[Site "Chess.com"]
[Date "2024.02.27"]
[Round "8"]
[White "Unkreativ3"]
[Black "becemix"]
[Result "0-1"]
[WhiteElo "2584"]
[BlackElo "2441"]
[TimeControl "180+1"]
[EndTime "15:28:21 PST"]
[Termination "becemix won by checkmate"]

1. e4 {[%clk 0:03:00.9]} 1... e5 {[%clk 0:02:51.3]} 2. Nf3 {[%clk 0:03:00.5]}
2... Nc6 {[%clk 0:02:51.4]} 3. Bc4 {[%clk 0:02:59.1]} 3... Bc5 {[%clk
0:02:50.9]} 4. O-O {[%clk 0:02:57.5]} 4... Nf6 {[%clk 0:02:50.9]} 5. Nc3 {[%clk
0:02:52.4]} 5... d6 {[%clk 0:02:50.7]} 6. d3 {[%clk 0:02:52.6]} 6... h6 {[%clk
0:02:49.5]} 7. Be3 {[%clk 0:02:52.1]} 7... Bb6 {[%clk 0:02:49.4]} 8. Nd5 {[%clk
0:02:45.8]} 8... Nxd5 {[%clk 0:02:46]} 9. exd5 {[%clk 0:02:41.3]} 9... Ne7
{[%clk 0:02:45.4]} 10. Bxb6 {[%clk 0:02:37]} 10... axb6 {[%clk 0:02:46.3]} 11.
d4 {[%clk 0:02:35.8]} 11... e4 {[%clk 0:02:32.7]} 12. Nd2 {[%clk 0:02:34.2]}
12... f5 {[%clk 0:02:29.5]} 13. Bb5+ {[%clk 0:02:26.1]} 13... Kf7 {[%clk
0:02:20.7]} 14. c4 {[%clk 0:02:22.3]} 14... Rf8 {[%clk 0:02:09.7]} 15. Re1
{[%clk 0:02:12.5]} 15... Kg8 {[%clk 0:02:08.5]} 16. f3 {[%clk 0:02:11.5]} 16...
exf3 {[%clk 0:01:48.1]} 17. Nxf3 {[%clk 0:02:12.4]} 17... Ng6 {[%clk 0:01:47.8]}
18. Ba4 {[%clk 0:02:04.6]} 18... Qf6 {[%clk 0:01:43.3]} 19. Bc2 {[%clk 0:02:02]}
19... Bd7 {[%clk 0:01:41.8]} 20. a3 {[%clk 0:01:59.1]} 20... Nf4 {[%clk
0:01:35.9]} 21. Qd2 {[%clk 0:01:58.9]} 21... g5 {[%clk 0:01:34.5]} 22. g3 {[%clk
0:01:52.9]} 22... Nh3+ {[%clk 0:01:25.2]} 23. Kh1 {[%clk 0:01:50.9]} 23... f4
{[%clk 0:01:22.5]} 24. Ng1 {[%clk 0:01:32.9]} 24... fxg3 {[%clk 0:01:12.7]} 25.
hxg3 {[%clk 0:01:22.8]} 25... Nf2+ {[%clk 0:01:07.4]} 26. Kg2 {[%clk 0:01:14.1]}
26... Ng4 {[%clk 0:00:58.8]} 27. Rf1 {[%clk 0:01:06.7]} 27... Qg7 {[%clk
0:00:56.5]} 28. Rf3 {[%clk 0:00:53.3]} 28... Rae8 {[%clk 0:00:49.3]} 29. Rxf8+
{[%clk 0:00:44.4]} 29... Rxf8 {[%clk 0:00:48.9]} 30. Rf1 {[%clk 0:00:41.3]}
30... Re8 {[%clk 0:00:47.7]} 31. Rf3 {[%clk 0:00:32]} 31... Qe7 {[%clk 0:00:42]}
32. Bg6 {[%clk 0:00:23.2]} 32... Qe1 {[%clk 0:00:36.5]} 33. Qxe1 {[%clk
0:00:18.5]} 33... Rxe1 {[%clk 0:00:37.4]} 34. b3 {[%clk 0:00:14.4]} 34... Kg7
{[%clk 0:00:30.8]} 35. Bh5 {[%clk 0:00:14]} 35... Nf6 {[%clk 0:00:30.5]} 36. g4
{[%clk 0:00:14.3]} 36... Bxg4 {[%clk 0:00:24.5]} 37. Rxf6 {[%clk 0:00:09.3]}
37... Bxh5 {[%clk 0:00:24.1]} 38. Re6 {[%clk 0:00:08.1]} 38... Rxe6 {[%clk
0:00:18.5]} 39. dxe6 {[%clk 0:00:09]} 39... Bd1 {[%clk 0:00:17.1]} 40. b4 {[%clk
0:00:06.4]} 40... Bb3 {[%clk 0:00:16.9]} 41. c5 {[%clk 0:00:03]} 41... bxc5
{[%clk 0:00:15.9]} 42. dxc5 {[%clk 0:00:03.9]} 42... dxc5 {[%clk 0:00:16]} 43.
e7 {[%clk 0:00:03.3]} 43... Kf7 {[%clk 0:00:16.1]} 44. bxc5 {[%clk 0:00:03]}
44... Kxe7 {[%clk 0:00:16.3]} 45. Ne2 {[%clk 0:00:03.7]} 45... Kf6 {[%clk
0:00:14.7]} 46. Kf3 {[%clk 0:00:02.7]} 46... Bd1 {[%clk 0:00:14.4]} 47. Ke3
{[%clk 0:00:03]} 47... Bxe2 {[%clk 0:00:14.4]} 48. Kxe2 {[%clk 0:00:03.9]} 48...
Ke5 {[%clk 0:00:14.7]} 49. c6 {[%clk 0:00:04]} 49... bxc6 {[%clk 0:00:14.9]} 50.
Kd3 {[%clk 0:00:04.3]} 50... Kd5 {[%clk 0:00:15.8]} 51. Ke3 {[%clk 0:00:03.9]}
51... Kc5 {[%clk 0:00:16.7]} 52. Ke4 {[%clk 0:00:04.3]} 52... Kb5 {[%clk
0:00:17.1]} 53. Kf5 {[%clk 0:00:05.2]} 53... Ka4 {[%clk 0:00:17.6]} 54. Ke4
{[%clk 0:00:06.1]} 54... Kxa3 {[%clk 0:00:17.7]} 55. Kd3 {[%clk 0:00:07]} 55...
h5 {[%clk 0:00:17.6]} 56. Kd2 {[%clk 0:00:07.9]} 56... h4 {[%clk 0:00:18.5]} 57.
Kc3 {[%clk 0:00:08.5]} 57... h3 {[%clk 0:00:19.4]} 58. Kd4 {[%clk 0:00:09.4]}
58... h2 {[%clk 0:00:20.2]} 59. Kc5 {[%clk 0:00:10.3]} 59... h1=Q {[%clk
0:00:21.1]} 60. Kd4 {[%clk 0:00:10.2]} 60... Qd5+ {[%clk 0:00:20.7]} 61. Kc3
{[%clk 0:00:11.1]} 61... g4 {[%clk 0:00:19.9]} 62. Kc2 {[%clk 0:00:12]} 62... g3
{[%clk 0:00:20.4]} 63. Kc3 {[%clk 0:00:12.6]} 63... g2 {[%clk 0:00:20.6]} 64.
Kc2 {[%clk 0:00:13.5]} 64... g1=Q {[%clk 0:00:20.7]} 65. Kc3 {[%clk 0:00:14.4]}
65... Qc1# {[%clk 0:00:21]} 0-1

[Event "Late-Titled-Tuesday-Blitz-February-27-2024"]
[Site "Chess.com"]
[Date "2024.02.27"]
[Round "8"]
[White "vi_pranav"]
[Black "ArtemDyachuk"]
[Result "1-0"]
[WhiteElo "3101"]
[BlackElo "2715"]
[TimeControl "180+1"]
[EndTime "15:28:25 PST"]
[Termination "vi_pranav won on time"]

1. d4 {[%clk 0:03:00.9]} 1... d5 {[%clk 0:02:57.5]} 2. Nc3 {[%clk 0:02:59.9]}
2... Nf6 {[%clk 0:02:56.9]} 3. Bf4 {[%clk 0:03:00.1]} 3... c6 {[%clk 0:02:57.5]}
4. e3 {[%clk 0:03:00.4]} 4... Qb6 {[%clk 0:02:58.1]} 5. Rb1 {[%clk 0:03:00.1]}
5... Bf5 {[%clk 0:02:58.1]} 6. f3 {[%clk 0:03:00.1]} 6... e6 {[%clk 0:02:57.3]}
7. g4 {[%clk 0:03:00.2]} 7... Bg6 {[%clk 0:02:56.5]} 8. h4 {[%clk 0:03:00.9]}
8... h6 {[%clk 0:02:53.9]} 9. Bd3 {[%clk 0:03:00.7]} 9... Bxd3 {[%clk 0:02:53]}
10. Qxd3 {[%clk 0:03:00.7]} 10... Nbd7 {[%clk 0:02:53.4]} 11. Nge2 {[%clk
0:03:00.6]} 11... c5 {[%clk 0:02:43.4]} 12. Qb5 {[%clk 0:02:37]} 12... a6 {[%clk
0:02:39.5]} 13. Qd3 {[%clk 0:02:24.3]} 13... Bd6 {[%clk 0:02:34.1]} 14. Bxd6
{[%clk 0:02:22.5]} 14... Qxd6 {[%clk 0:02:35]} 15. Kf2 {[%clk 0:02:21]} 15...
O-O-O {[%clk 0:02:30.3]} 16. b4 {[%clk 0:02:11.2]} 16... cxb4 {[%clk 0:02:24.2]}
17. Na4 {[%clk 0:02:06.1]} 17... b5 {[%clk 0:02:23.8]} 18. Nc5 {[%clk
0:02:06.5]} 18... Nxc5 {[%clk 0:02:23.4]} 19. dxc5 {[%clk 0:02:07.4]} 19... Qxc5
{[%clk 0:02:24.2]} 20. c3 {[%clk 0:02:08.1]} 20... bxc3 {[%clk 0:02:06.1]} 21.
Rhc1 {[%clk 0:02:07.2]} 21... Qd6 {[%clk 0:02:01.7]} 22. Kg2 {[%clk 0:01:59.7]}
22... Kd7 {[%clk 0:02:01]} 23. Rxc3 {[%clk 0:01:51.1]} 23... Rc8 {[%clk
0:01:58.9]} 24. a4 {[%clk 0:01:47]} 24... Rxc3 {[%clk 0:01:54.8]} 25. Nxc3
{[%clk 0:01:43]} 25... b4 {[%clk 0:01:54.3]} 26. Ne2 {[%clk 0:01:40.7]} 26...
Rc8 {[%clk 0:01:41.9]} 27. a5 {[%clk 0:01:31.7]} 27... Rc4 {[%clk 0:01:40.3]}
28. Rb2 {[%clk 0:01:20.9]} 28... Qe5 {[%clk 0:01:29.5]} 29. Rd2 {[%clk 0:01:18]}
29... h5 {[%clk 0:01:25.3]} 30. Qxc4 {[%clk 0:01:12.8]} 30... hxg4 {[%clk
0:01:18.3]} 31. fxg4 {[%clk 0:00:59.8]} 31... Qxe3 {[%clk 0:01:17.9]} 32. Qd4
{[%clk 0:00:57.2]} 32... Nxg4 {[%clk 0:01:10.5]} 33. Qxe3 {[%clk 0:00:55.9]}
33... Nxe3+ {[%clk 0:01:10.3]} 34. Kf3 {[%clk 0:00:56.5]} 34... Nc4 {[%clk
0:01:10.2]} 35. Rd1 {[%clk 0:00:56.7]} 35... b3 {[%clk 0:01:01.1]} 36. Nc3
{[%clk 0:00:52.8]} 36... b2 {[%clk 0:00:55.1]} 37. Ke2 {[%clk 0:00:50]} 37...
Nxa5 {[%clk 0:00:39.7]} 38. Na4 {[%clk 0:00:45.2]} 38... Kd6 {[%clk 0:00:30.5]}
39. Nxb2 {[%clk 0:00:44.8]} 39... g6 {[%clk 0:00:30.7]} 40. Ra1 {[%clk 0:00:44]}
40... Nb3 {[%clk 0:00:30.7]} 41. Rxa6+ {[%clk 0:00:44.2]} 41... Ke5 {[%clk
0:00:31.3]} 42. Ke3 {[%clk 0:00:43.7]} 42... Kf5 {[%clk 0:00:25.4]} 43. Nd3
{[%clk 0:00:41.4]} 43... e5 {[%clk 0:00:16.9]} 44. Rb6 {[%clk 0:00:33.2]} 44...
Na5 {[%clk 0:00:13.2]} 45. Rb5 {[%clk 0:00:31.9]} 45... Nc4+ {[%clk 0:00:13]}
46. Ke2 {[%clk 0:00:31.3]} 46... Ke4 {[%clk 0:00:12.4]} 47. Nb4 {[%clk
0:00:18.8]} 47... d4 {[%clk 0:00:09.7]} 48. Nd3 {[%clk 0:00:18.7]} 48... f6
{[%clk 0:00:07.7]} 49. Rc5 {[%clk 0:00:17.7]} 49... Ne3 {[%clk 0:00:07]} 50. Rc6
{[%clk 0:00:14.5]} 50... f5 {[%clk 0:00:04.5]} 51. Rxg6 {[%clk 0:00:11.1]} 51...
f4 {[%clk 0:00:03.3]} 52. Nf2+ {[%clk 0:00:11]} 52... Kf5 {[%clk 0:00:02.8]} 53.
Rg5+ {[%clk 0:00:11.5]} 53... Ke6 {[%clk 0:00:02.5]} 54. Nd3 {[%clk 0:00:11.5]}
54... Nc4 {[%clk 0:00:01.8]} 55. h5 {[%clk 0:00:11.7]} 55... e4 {[%clk
0:00:01.5]} 56. Nxf4+ {[%clk 0:00:12.2]} 56... Kf6 {[%clk 0:00:01.6]} 57. Rc5
{[%clk 0:00:07.8]} 57... d3+ {[%clk 0:00:02.5]} 58. Ke1 {[%clk 0:00:06.2]} 58...
Ne3 {[%clk 0:00:02.3]} 59. h6 {[%clk 0:00:05.8]} 1-0

[Event "Late-Titled-Tuesday-Blitz-February-27-2024"]
[Site "Chess.com"]
[Date "2024.02.27"]
[Round "8"]
[White "rasmussvane"]
[Black "Firouzja2003"]
[Result "0-1"]
[WhiteElo "2934"]
[BlackElo "3063"]
[TimeControl "180+1"]
[EndTime "15:28:26 PST"]
[Termination "Firouzja2003 won by resignation"]

1. Nf3 {[%clk 0:02:59.2]} 1... Nf6 {[%clk 0:02:59.6]} 2. g3 {[%clk 0:02:58.9]}
2... g6 {[%clk 0:03:00.2]} 3. Bg2 {[%clk 0:02:59.2]} 3... Bg7 {[%clk 0:03:01.1]}
4. O-O {[%clk 0:02:59.7]} 4... O-O {[%clk 0:03:01.9]} 5. d4 {[%clk 0:03:00.1]}
5... d6 {[%clk 0:03:02.2]} 6. Re1 {[%clk 0:02:59.7]} 6... Nbd7 {[%clk
0:03:02.4]} 7. e4 {[%clk 0:02:59.8]} 7... e5 {[%clk 0:03:03.2]} 8. Nc3 {[%clk
0:03:00.3]} 8... c6 {[%clk 0:03:03.6]} 9. a4 {[%clk 0:03:00.2]} 9... Re8 {[%clk
0:03:03.9]} 10. h3 {[%clk 0:02:59.5]} 10... Qc7 {[%clk 0:03:03.4]} 11. Be3
{[%clk 0:02:55.9]} 11... a5 {[%clk 0:03:02.8]} 12. Nd2 {[%clk 0:02:54.8]} 12...
Nb6 {[%clk 0:03:00.4]} 13. d5 {[%clk 0:02:44.8]} 13... Bd7 {[%clk 0:02:55.3]}
14. Ra3 {[%clk 0:02:34.3]} 14... cxd5 {[%clk 0:02:52.8]} 15. exd5 {[%clk
0:02:29.2]} 15... Rec8 {[%clk 0:02:41.3]} 16. Qe2 {[%clk 0:02:12.8]} 16... Nc4
{[%clk 0:02:40.9]} 17. Nxc4 {[%clk 0:02:07.3]} 17... Qxc4 {[%clk 0:02:41.8]} 18.
Qd2 {[%clk 0:01:53.7]} 18... Bf5 {[%clk 0:02:24.6]} 19. Rb3 {[%clk 0:01:48.5]}
19... Ne4 {[%clk 0:02:19.3]} 20. Bxe4 {[%clk 0:01:36.9]} 20... Bxe4 {[%clk
0:02:20.2]} 21. Rxb7 {[%clk 0:01:34.9]} 21... Bf3 {[%clk 0:01:39.3]} 22. Rb6
{[%clk 0:00:59.5]} 22... Rab8 {[%clk 0:01:33.7]} 23. b3 {[%clk 0:00:54.1]} 23...
Qc7 {[%clk 0:01:31]} 24. Nb5 {[%clk 0:00:53.5]} 24... Qd7 {[%clk 0:01:29.7]} 25.
Kh2 {[%clk 0:00:35.9]} 25... Rxb6 {[%clk 0:01:15.5]} 26. Bxb6 {[%clk 0:00:36.8]}
26... f5 {[%clk 0:01:10.8]} 27. c4 {[%clk 0:00:32.9]} 27... f4 {[%clk
0:01:04.2]} 28. Qd3 {[%clk 0:00:25.9]} 28... fxg3+ {[%clk 0:00:54.6]} 29. fxg3
{[%clk 0:00:24.5]} 29... Rf8 {[%clk 0:00:55.5]} 30. Qe3 {[%clk 0:00:21]} 30...
Qf5 {[%clk 0:00:41.1]} 31. Rf1 {[%clk 0:00:20.6]} 31... Qc2+ {[%clk 0:00:30.7]}
32. Qf2 {[%clk 0:00:18.7]} 32... Qxb3 {[%clk 0:00:27.1]} 33. Nxd6 {[%clk
0:00:05.4]} 33... Bxd5 {[%clk 0:00:16]} 34. Qd2 {[%clk 0:00:03.9]} 34... Be6
{[%clk 0:00:05.5]} 35. Rxf8+ {[%clk 0:00:03.8]} 35... Bxf8 {[%clk 0:00:06.4]}
36. Be3 {[%clk 0:00:03.6]} 36... Qxa4 {[%clk 0:00:06.5]} 37. Ne4 {[%clk
0:00:03.8]} 37... Qc6 {[%clk 0:00:05.4]} 38. Nf6+ {[%clk 0:00:03.9]} 38... Kg7
{[%clk 0:00:05.5]} 39. Bh6+ {[%clk 0:00:03.8]} 39... Kxf6 {[%clk 0:00:06.1]} 40.
Bxf8 {[%clk 0:00:03.8]} 40... Bxc4 {[%clk 0:00:04.4]} 41. Qf2+ {[%clk
0:00:04.1]} 41... Ke6 {[%clk 0:00:04.4]} 42. Bg7 {[%clk 0:00:04.6]} 42... Qd6
{[%clk 0:00:02.5]} 43. Qf6+ {[%clk 0:00:04.4]} 43... Kd5 {[%clk 0:00:03.3]} 44.
Qf7+ {[%clk 0:00:03.9]} 44... Kc5 {[%clk 0:00:03.5]} 45. Qf2+ {[%clk 0:00:03.2]}
45... Kb5 {[%clk 0:00:03.7]} 46. Qb2+ {[%clk 0:00:02.6]} 46... Ka6 {[%clk
0:00:04]} 47. Qf2 {[%clk 0:00:02.5]} 47... e4 {[%clk 0:00:03.6]} 48. Bf8 {[%clk
0:00:02.3]} 48... Qc6 {[%clk 0:00:03.2]} 49. Qd4 {[%clk 0:00:02.2]} 49... Bd5
{[%clk 0:00:03.2]} 50. g4 {[%clk 0:00:02.5]} 50... Qc2+ {[%clk 0:00:03.4]} 51.
Kg3 {[%clk 0:00:02.8]} 51... Qd3+ {[%clk 0:00:04]} 52. Qxd3+ {[%clk 0:00:03.3]}
52... exd3 {[%clk 0:00:04.9]} 53. Kf2 {[%clk 0:00:03.9]} 53... Kb5 {[%clk
0:00:03.7]} 54. Ke3 {[%clk 0:00:04.4]} 54... Kc4 {[%clk 0:00:04.6]} 55. Kd2
{[%clk 0:00:03.9]} 55... Bg2 {[%clk 0:00:04.7]} 56. h4 {[%clk 0:00:03.8]} 56...
Bf3 {[%clk 0:00:05]} 57. g5 {[%clk 0:00:04.5]} 57... Be4 {[%clk 0:00:05.6]} 58.
Be7 {[%clk 0:00:04.6]} 58... Kb3 {[%clk 0:00:05.7]} 59. Bd6 {[%clk 0:00:03.4]}
59... a4 {[%clk 0:00:05.8]} 60. Be7 {[%clk 0:00:04]} 60... a3 {[%clk 0:00:06.1]}
61. Bd6 {[%clk 0:00:04.6]} 61... Kb2 {[%clk 0:00:06]} 62. Be5+ {[%clk
0:00:04.7]} 62... Kb1 {[%clk 0:00:06.5]} 63. Ke3 {[%clk 0:00:03.4]} 63... Bf5
{[%clk 0:00:06.4]} 64. Kd2 {[%clk 0:00:03.9]} 64... a2 {[%clk 0:00:06.7]} 65.
Ba1 {[%clk 0:00:03.6]} 65... Kxa1 {[%clk 0:00:06.8]} 66. Kc1 {[%clk 0:00:04.5]}
66... d2+ {[%clk 0:00:07.2]} 0-1

[Event "Late-Titled-Tuesday-Blitz-February-27-2024"]
[Site "Chess.com"]
[Date "2024.02.27"]
[Round "8"]
[White "Bilan_Danila"]
[Black "Tugrik1969"]
[Result "1-0"]
[WhiteElo "2539"]
[BlackElo "2388"]
[TimeControl "180+1"]
[EndTime "15:28:30 PST"]
[Termination "Bilan_Danila won on time"]

1. d4 {[%clk 0:02:59.7]} 1... d5 {[%clk 0:02:57.6]} 2. Nf3 {[%clk 0:03:00.3]}
2... Nf6 {[%clk 0:02:57.1]} 3. c4 {[%clk 0:03:01]} 3... e6 {[%clk 0:02:57.4]} 4.
Nc3 {[%clk 0:03:01.3]} 4... a6 {[%clk 0:02:57.7]} 5. cxd5 {[%clk 0:03:00.9]}
5... exd5 {[%clk 0:02:58.6]} 6. Bg5 {[%clk 0:02:59.4]} 6... Be6 {[%clk
0:02:58.6]} 7. e3 {[%clk 0:02:59.5]} 7... Nbd7 {[%clk 0:02:58.2]} 8. Bd3 {[%clk
0:03:00]} 8... Bd6 {[%clk 0:02:58.3]} 9. Qc2 {[%clk 0:03:00.1]} 9... c6 {[%clk
0:02:56]} 10. O-O {[%clk 0:02:57.3]} 10... Qc7 {[%clk 0:02:51.1]} 11. e4 {[%clk
0:02:40.2]} 11... dxe4 {[%clk 0:02:47.3]} 12. Nxe4 {[%clk 0:02:41.1]} 12... Nxe4
{[%clk 0:02:41.4]} 13. Bxe4 {[%clk 0:02:42]} 13... h6 {[%clk 0:02:34.6]} 14. Bh4
{[%clk 0:02:34.4]} 14... O-O {[%clk 0:02:30.7]} 15. Rfe1 {[%clk 0:02:18.6]}
15... Rfe8 {[%clk 0:02:29.4]} 16. Rad1 {[%clk 0:02:14.6]} 16... Qa5 {[%clk
0:01:49.6]} 17. a3 {[%clk 0:01:48.1]} 17... Qh5 {[%clk 0:01:47.6]} 18. Bg3
{[%clk 0:01:44.1]} 18... Bxg3 {[%clk 0:01:45.4]} 19. hxg3 {[%clk 0:01:45]} 19...
Nf6 {[%clk 0:01:45.3]} 20. Ne5 {[%clk 0:01:37.4]} 20... Rad8 {[%clk 0:01:32]}
21. f4 {[%clk 0:01:26.7]} 21... Ng4 {[%clk 0:01:16.9]} 22. Nxg4 {[%clk
0:01:00.9]} 22... Bxg4 {[%clk 0:01:16.1]} 23. Rc1 {[%clk 0:00:32]} 23... Be6
{[%clk 0:01:08.3]} 24. Qc5 {[%clk 0:00:22.5]} 24... Qg4 {[%clk 0:00:57.1]} 25.
Kf2 {[%clk 0:00:21.3]} 25... h5 {[%clk 0:00:39.3]} 26. Bf3 {[%clk 0:00:21]}
26... Qg6 {[%clk 0:00:33.8]} 27. Bxh5 {[%clk 0:00:16.3]} 27... Qf6 {[%clk
0:00:34.2]} 28. Re5 {[%clk 0:00:14.4]} 28... g6 {[%clk 0:00:31.9]} 29. Bf3
{[%clk 0:00:14.2]} 29... Kg7 {[%clk 0:00:23.1]} 30. Rce1 {[%clk 0:00:14.1]}
30... Rh8 {[%clk 0:00:21.7]} 31. b4 {[%clk 0:00:13.1]} 31... Rd7 {[%clk
0:00:17.7]} 32. d5 {[%clk 0:00:08.5]} 32... cxd5 {[%clk 0:00:16]} 33. Bxd5
{[%clk 0:00:09.4]} 33... Bxd5 {[%clk 0:00:15.4]} 34. Rxd5 {[%clk 0:00:10.3]}
34... Rxd5 {[%clk 0:00:13.9]} 35. Qxd5 {[%clk 0:00:11.2]} 35... Rd8 {[%clk
0:00:13.6]} 36. Qe5 {[%clk 0:00:10.4]} 36... Rd2+ {[%clk 0:00:12]} 37. Re2
{[%clk 0:00:11]} 37... Qxe5 {[%clk 0:00:11.4]} 38. fxe5 {[%clk 0:00:11.9]} 38...
Rd3 {[%clk 0:00:11.9]} 39. Re3 {[%clk 0:00:11.8]} 39... Rd2+ {[%clk 0:00:10.5]}
40. Kf3 {[%clk 0:00:12.4]} 40... Ra2 {[%clk 0:00:10.6]} 41. Ke4 {[%clk
0:00:12.7]} 41... b5 {[%clk 0:00:09.7]} 42. Kd5 {[%clk 0:00:12.5]} 42... Rc2
{[%clk 0:00:08.2]} 43. Kd6 {[%clk 0:00:09.3]} 43... g5 {[%clk 0:00:07.2]} 44. g4
{[%clk 0:00:06.4]} 44... Rxg2 {[%clk 0:00:05.7]} 45. Kc6 {[%clk 0:00:06]} 45...
Rxg4 {[%clk 0:00:04.6]} 46. Kb6 {[%clk 0:00:06.6]} 46... Rd4 {[%clk 0:00:04.9]}
47. Kxa6 {[%clk 0:00:07]} 47... Rd5 {[%clk 0:00:05.6]} 48. Kb6 {[%clk
0:00:07.7]} 48... Kg6 {[%clk 0:00:04.3]} 49. Kc6 {[%clk 0:00:08.3]} 49... Rd1
{[%clk 0:00:02.1]} 50. Kxb5 {[%clk 0:00:08.8]} 50... g4 {[%clk 0:00:02.4]} 51.
e6 {[%clk 0:00:08.4]} 51... Kf5 {[%clk 0:00:03]} 52. exf7 {[%clk 0:00:08.4]}
52... Rd5+ {[%clk 0:00:02.3]} 53. Kc4 {[%clk 0:00:05.9]} 53... Rd8 {[%clk
0:00:03.2]} 54. Re8 {[%clk 0:00:06.5]} 54... Rc8+ {[%clk 0:00:02]} 55. Rxc8
{[%clk 0:00:05.6]} 1-0